bitfinex/quotes_BTCUSD_20250303
["timestamp","ask_amount","ask_price","bid_price","bid_amount"]
[1740987020813,0.11483712,92160.0,92159.0,0.162762]
[1740987022170,0.11483712,92160.0,92139.0,0.3]
[1740987022171,0.11583712,92160.0,92139.0,0.3]
[1740987022291,0.001,92159.0,92134.0,0.217074]
[1740987022488,0.001,92159.0,92155.0,0.162768]
[1740987022748,0.163762,92159.0,92138.0,0.01454085]
[1740987022941,0.001,92159.0,92153.0,0.162772]
[1740987023343,0.001,92159.0,92138.0,0.01454085]
[1740987023654,0.001,92159.0,92135.0,0.31454085]
[1740987023832,0.001,92159.0,92145.0,0.3]
[1740987024007,0.001,92159.0,92146.0,0.01454085]
[1740987024214,0.002,92159.0,92158.0,0.162763]
[1740987024395,0.002,92159.0,92154.0,0.16277]
[1740987024599,0.001,92159.0,92148.0,0.01454085]
[1740987024795,0.11483712,92160.0,92159.0,0.161762]
[1740987025216,0.11483712,92160.0,92157.0,0.162764]
[1740987025457,0.217019,92158.0,92146.0,0.3]
[1740987025752,0.001,92157.0,92138.0,0.3]
[1740987025954,0.27760412,92156.0,92150.0,0.162777]
[1740987026134,0.001,92155.0,92147.0,0.217043]
[1740987026335,0.001,92155.0,92131.0,0.01454085]
[1740987026336,0.11483712,92156.0,92155.0,0.17730985]
[1740987026548,0.11483712,92156.0,92155.0,0.47730985]
[1740987027765,0.11483712,92156.0,92155.0,0.48030985]
[1740987027959,0.11483712,92156.0,92155.0,0.48630985]
[1740987028175,0.0001703,92157.0,92156.0,0.47730785]
[1740987029844,0.00012037,92161.0,92156.0,0.47730785]
[1740987029845,6.7e-07,92161.0,92156.0,0.47730785]
[1740987030047,0.0001703,92197.0,92164.0,0.05]
[1740987030310,0.00029078,92197.0,92196.0,0.47723685]
[1740987031164,0.00029078,92197.0,92196.0,0.57051685]
[1740987031308,0.00029078,92197.0,92196.0,0.47723685]
[1740987032136,0.00029078,92197.0,92196.0,0.57047685]
[1740987033905,0.00029078,92197.0,92196.0,0.47723685]
[1740987034250,0.00029078,92197.0,92196.0,0.48323685]
[1740987034652,0.00029078,92197.0,92196.0,0.48423685]
[1740987035147,0.00029078,92197.0,92196.0,0.57043685]
[1740987035363,0.00029078,92197.0,92196.0,0.58243685]
[1740987035927,0.00029078,92197.0,92196.0,0.57543685]
[1740987036128,0.00029078,92197.0,92196.0,0.58243685]
[1740987036952,0.00029078,92197.0,92196.0,0.57743685]
[1740987037272,0.00029078,92197.0,92196.0,0.58343685]
[1740987037623,0.00029078,92197.0,92196.0,0.57043685]
[1740987037989,0.00029078,92197.0,92196.0,0.58443685]
[1740987038133,0.00029078,92197.0,92196.0,0.57743685]
[1740987038334,0.00029078,92197.0,92196.0,0.57039685]
[1740987038574,0.00029078,92197.0,92196.0,0.57739685]
[1740987038775,0.00029078,92197.0,92196.0,0.58439685]
[1740987038995,0.00029078,92197.0,92196.0,0.66319685]
[1740987039195,0.00029078,92197.0,92196.0,0.48423685]
[1740987039350,0.00029078,92197.0,92196.0,0.57739685]
[1740987040755,0.00029078,92197.0,92196.0,0.58439685]
[1740987041114,0.00029078,92197.0,92196.0,0.49123685]
[1740987041338,0.00029078,92197.0,92196.0,0.58435685]
[1740987041580,0.00029078,92197.0,92196.0,0.169696]
[1740987041789,0.00029078,92197.0,92196.0,0.18423685]
[1740987041990,0.00029078,92197.0,92196.0,0.4787553]
[1740987042215,0.00029078,92197.0,92196.0,0.57035685]
[1740987042366,0.00029078,92197.0,92196.0,0.57735685]
[1740987043286,0.00029078,92197.0,92196.0,0.49123685]
[1740987043448,0.00029078,92197.0,92196.0,0.58435685]
[1740987043778,0.00029078,92197.0,92196.0,0.57735685]
[1740987044576,0.00029078,92197.0,92196.0,0.58435685]
[1740987044778,0.00029078,92197.0,92196.0,0.57735685]
[1740987044948,0.00029078,92197.0,92196.0,0.48423685]
[1740987045168,0.00029078,92197.0,92196.0,0.49123685]
[1740987045343,0.00029078,92197.0,92196.0,0.48423685]
[1740987045696,7.8e-07,92197.0,92196.0,0.58431685]
[1740987045833,7.8e-07,92197.0,92196.0,0.57031685]
[1740987046189,7.8e-07,92197.0,92196.0,0.57731685]
[1740987046576,7.8e-07,92197.0,92196.0,0.48423685]
[1740987046777,7.8e-07,92197.0,92196.0,0.47723685]
[1740987046999,7.8e-07,92197.0,92196.0,0.48423685]
[1740987047204,7.8e-07,92197.0,92196.0,0.57731685]
[1740987047356,7.8e-07,92197.0,92196.0,0.57031685]
[1740987047557,7.8e-07,92197.0,92196.0,0.57731685]
[1740987047843,7.8e-07,92197.0,92196.0,0.48423685]
[1740987048061,7.8e-07,92197.0,92196.0,0.58431685]
[1740987048832,7.8e-07,92197.0,92196.0,0.49123685]
[1740987049027,7.8e-07,92197.0,92196.0,0.57731685]
[1740987049230,7.8e-07,92197.0,92196.0,0.48423685]
[1740987049434,7.8e-07,92197.0,92196.0,0.58427685]
[1740987050252,7.8e-07,92197.0,92196.0,0.49123685]
[1740987050457,7.8e-07,92197.0,92196.0,0.58427685]
[1740987050692,0.00017098,92197.0,92196.0,0.58427685]
[1740987051391,9.8e-07,92197.0,92196.0,0.58427685]
[1740987052242,9.8e-07,92197.0,92196.0,0.49123685]
[1740987052572,9.8e-07,92197.0,92196.0,0.58423685]
[1740987053581,9.8e-07,92197.0,92196.0,0.49123685]
[1740987053967,9.8e-07,92197.0,92196.0,0.58423685]
[1740987054200,9.8e-07,92197.0,92196.0,0.49123685]
[1740987054434,9.8e-07,92197.0,92196.0,0.58423685]
[1740987054848,0.0001701,92209.0,92208.0,0.462675]
[1740987055112,0.00057162,92209.0,92208.0,0.47721585]
[1740987055376,0.00057162,92209.0,92208.0,0.57021585]
[1740987056134,0.00057162,92209.0,92208.0,0.47721585]
[1740987056877,0.00057162,92209.0,92208.0,0.57017585]
[1740987057054,0.00057162,92209.0,92208.0,0.47721585]
[1740987057255,0.00057162,92209.0,92208.0,0.58093235]
[1740987057457,0.00057162,92209.0,92208.0,0.58793235]
[1740987058278,0.00057162,92209.0,92208.0,0.59493235]
[1740987059255,0.00057162,92209.0,92208.0,0.50197235]
[1740987059439,0.00057162,92209.0,92208.0,0.59493235]
[1740987060265,0.00057162,92209.0,92208.0,0.50197235]
[1740987060665,0.0004774,92209.0,92208.0,0.59493235]
[1740987061228,0.0004774,92209.0,92208.0,0.50197235]
[1740987061484,0.0004774,92209.0,92208.0,0.59489235]
[1740987062106,0.0004774,92209.0,92208.0,0.50197235]
[1740987062319,0.0004774,92209.0,92208.0,0.59489235]
[1740987062818,0.0004774,92209.0,92208.0,0.50197235]
[1740987063014,0.0004774,92209.0,92208.0,0.59489235]
[1740987063237,0.0004774,92209.0,92208.0,0.50197235]
[1740987063434,0.0004774,92209.0,92208.0,0.59489235]
[1740987063633,0.0004774,92209.0,92208.0,0.50197235]
[1740987063814,0.0004774,92209.0,92208.0,0.59489235]
[1740987064641,0.0004,92219.0,92218.0,0.47719885]
[1740987064840,0.0004,92219.0,92218.0,0.57011885]
[1740987065196,0.0004,92219.0,92218.0,0.57007885]
[1740987065419,0.0004,92219.0,92218.0,0.47719885]
[1740987065606,0.0004,92219.0,92218.0,0.57007885]
[1740987066316,0.0004,92219.0,92218.0,0.48419885]
[1740987066485,0.0004,92219.0,92218.0,0.57007885]
[1740987066901,0.0004,92219.0,92218.0,0.57707885]
[1740987067282,0.0004,92219.0,92218.0,0.58407885]
[1740987067624,0.0004,92219.0,92218.0,0.57707885]
[1740987068060,0.0004,92219.0,92218.0,0.58407885]
[1740987068265,0.0004,92219.0,92218.0,0.57707885]
[1740987069041,0.0004,92219.0,92218.0,0.48419885]
[1740987069211,0.0004,92219.0,92218.0,0.49119885]
[1740987069407,0.0004,92219.0,92218.0,0.57703885]
[1740987069903,0.0004,92219.0,92218.0,0.476658]
[1740987070108,0.0004,92219.0,92218.0,0.3]
[1740987070302,0.0004,92219.0,92218.0,0.007]
[1740987070303,0.163056,92219.0,92218.0,0.007]
[1740987070521,0.0004,92219.0,92218.0,0.007]
[1740987070741,0.163056,92219.0,92213.0,0.462666]
[1740987070929,0.001,92218.0,92196.0,0.0003404]
[1740987071138,0.0463,92217.0,92196.0,0.0003404]
[1740987071281,0.162671,92211.0,92196.0,0.0003404]
[1740987071477,0.001,92210.0,92196.0,0.0003404]
[1740987071684,0.001,92210.0,92209.0,0.162673]
[1740987071995,0.0787,92216.0,92215.0,0.162663]
[1740987072395,0.0787,92216.0,92215.0,0.17720385]
[1740987072622,0.162665,92214.0,92213.0,0.007]
[1740987072797,0.001,92215.0,92213.0,0.007]
[1740987073219,0.0787,92216.0,92215.0,0.162663]
[1740987073418,0.0787,92216.0,92209.0,0.006]
[1740987073419,0.0812,92227.0,92218.0,0.17719885]
[1740987074202,0.162645,92225.0,92210.0,0.09284]
[1740987074384,0.2180389,92222.0,92215.0,0.007]
[1740987074602,0.216872,92221.0,92215.0,0.007]
[1740987074828,0.0011699,92222.0,92215.0,0.007]
[1740987074829,0.001,92220.0,92215.0,0.007]
[1740987075067,0.001,92220.0,92214.0,0.01454085]
[1740987075240,0.001,92220.0,92215.0,0.162663]
[1740987075445,0.001,92220.0,92203.0,0.3]
[1740987075446,0.001,92218.0,92208.0,0.0003404]
[1740987075641,0.001,92218.0,92208.0,0.4630144]
[1740987075642,0.162666,92214.0,92208.0,0.4630144]
[1740987075810,0.001,92213.0,92208.0,0.3003404]
[1740987076010,0.001,92213.0,92210.0,0.3]
[1740987076308,0.0001702,92214.0,92213.0,0.162666]
[1740987076506,0.0001702,92214.0,92213.0,0.17720685]
[1740987077140,0.0001702,92214.0,92213.0,0.47872497]
[1740987077496,0.0001702,92214.0,92213.0,0.47720685]
[1740987077653,0.0001702,92214.0,92213.0,0.57000685]
[1740987077854,0.0001702,92214.0,92213.0,0.57700685]
[1740987078054,0.0001702,92214.0,92213.0,0.58514292]
[1740987078629,0.0001702,92214.0,92213.0,0.59014292]
[1740987079020,0.0001702,92214.0,92213.0,0.58510292]
[1740987079190,0.0001702,92214.0,92213.0,0.49234292]
[1740987079394,0.0001702,92214.0,92213.0,0.49934292]
[1740987079600,0.0001702,92214.0,92213.0,0.59210292]
[1740987079933,0.0001702,92214.0,92213.0,0.58510292]
[1740987080283,0.0001702,92214.0,92213.0,0.59210292]
[1740987080479,0.0001702,92214.0,92213.0,0.49934292]
[1740987080715,0.0001702,92214.0,92213.0,0.59210292]
[1740987080914,0.0001702,92214.0,92213.0,0.58396685]
[1740987081120,0.0001702,92214.0,92213.0,0.476666]
[1740987081319,0.0001702,92214.0,92213.0,0.569426]
[1740987081622,0.0462702,92214.0,92213.0,0.176666]
[1740987081820,0.0462702,92214.0,92213.0,0.014]
[1740987082410,0.0462702,92214.0,92213.0,0.49120685]
[1740987082621,0.0462702,92214.0,92213.0,0.476666]
[1740987082979,0.0462702,92214.0,92213.0,0.47720685]
[1740987083189,0.0462702,92214.0,92213.0,0.48420685]
[1740987083402,0.0462702,92214.0,92213.0,0.48820685]
[1740987084055,0.0001702,92214.0,92213.0,0.48820685]
[1740987084584,0.0001702,92214.0,92213.0,0.58092685]
[1740987085173,0.0001702,92214.0,92213.0,0.48820685]
[1740987085327,0.0001702,92214.0,92213.0,0.58092685]
[1740987085779,0.0001702,92214.0,92213.0,0.57692685]
[1740987086353,0.0001702,92214.0,92213.0,0.56992685]
[1740987086540,0.0001702,92214.0,92213.0,0.48320685]
[1740987086732,0.0001702,92214.0,92213.0,0.57592685]
[1740987086971,0.0001702,92214.0,92213.0,0.56992685]
[1740987087170,0.0001702,92214.0,92213.0,0.47720685]
[1740987087445,0.0001702,92214.0,92213.0,0.57692685]
[1740987087661,0.0001702,92214.0,92213.0,0.58392685]
[1740987087864,0.0001702,92214.0,92213.0,0.49120685]
[1740987088038,0.0001702,92214.0,92213.0,0.58388685]
[1740987088229,0.0001702,92214.0,92213.0,0.49120685]
[1740987088544,0.0001702,92214.0,92213.0,0.58388685]
[1740987088779,0.0001702,92214.0,92213.0,0.49120685]
[1740987089550,0.0001702,92214.0,92213.0,0.57688685]
[1740987090434,0.0001702,92214.0,92213.0,0.48420685]
[1740987090756,0.0001702,92214.0,92213.0,0.58388685]
[1740987091136,0.0001702,92214.0,92213.0,0.49120685]
[1740987091335,0.0001702,92214.0,92213.0,0.58388685]
[1740987091963,0.0001702,92214.0,92213.0,0.62453351]
[1740987093981,0.0001702,92214.0,92213.0,0.53185351]
[1740987094267,0.0001702,92214.0,92213.0,0.62449351]
[1740987094438,0.0001702,92214.0,92213.0,0.53185351]
[1740987094584,0.0001702,92214.0,92213.0,0.52485351]
[1740987094787,0.0004,92219.0,92218.0,0.462658]
[1740987095004,0.0004,92219.0,92218.0,0.56983885]
[1740987095209,0.0004,92219.0,92218.0,0.47719885]
[1740987095415,0.0004,92219.0,92218.0,0.56983885]
[1740987096718,0.0004,92219.0,92218.0,0.58383885]
[1740987097727,0.0004,92219.0,92218.0,0.49119885]
[1740987097979,0.0004,92219.0,92218.0,0.58379885]
[1740987099665,0.0004,92219.0,92218.0,0.49119885]
[1740987099846,0.0004,92219.0,92218.0,0.61743036]
[1740987100348,0.0004,92219.0,92218.0,0.62443036]
[1740987100683,0.0004,92219.0,92218.0,0.61739036]
[1740987101620,0.0005702,92219.0,92218.0,0.61739036]
[1740987103432,0.0005702,92219.0,92218.0,0.53183036]
[1740987103730,0.0005702,92219.0,92218.0,0.62439036]
[1740987104124,0.0005702,92219.0,92218.0,0.52483036]
[1740987104349,0.0005702,92219.0,92218.0,0.61735036]
[1740987104538,0.0005702,92219.0,92218.0,0.62435036]
[1740987105234,0.0005702,92219.0,92218.0,0.61735036]
[1740987105443,0.0005702,92219.0,92218.0,0.57671885]
[1740987105786,0.0005702,92219.0,92218.0,0.48419885]
[1740987105992,0.0005702,92219.0,92218.0,0.57671885]
[1740987106196,0.0005702,92219.0,92218.0,0.56971885]
[1740987106395,0.0005702,92219.0,92218.0,0.57671885]
[1740987107036,0.0005702,92219.0,92218.0,0.59184994]
[1740987107427,0.0005702,92219.0,92218.0,0.49932994]
[1740987107629,0.0005702,92219.0,92218.0,0.59184994]
[1740987108261,0.0005702,92219.0,92218.0,0.63250782]
[1740987108460,0.0005702,92219.0,92218.0,0.53998782]
[1740987108659,2e-07,92219.0,92218.0,0.53998782]
[1740987108873,2e-07,92219.0,92218.0,0.63246782]
[1740987109330,1e-07,92222.0,92221.0,0.462652]
[1740987109526,1e-07,92231.0,92230.0,0.47717685]
[1740987109726,4e-07,92238.0,92237.0,0.47716485]
[1740987110040,0.00012081,92238.0,92237.0,0.56964485]
[1740987110427,8.1e-07,92238.0,92237.0,0.47716485]
[1740987110645,8.1e-07,92238.0,92237.0,0.57777594]
[1740987110863,8.1e-07,92238.0,92237.0,0.52595382]
[1740987111116,8.1e-07,92238.0,92237.0,0.54742372]
[1740987111362,8.1e-07,92238.0,92237.0,0.56142372]
[1740987111528,8.1e-07,92238.0,92237.0,0.64690372]
[1740987111772,8.1e-07,92238.0,92237.0,0.54742372]
[1740987111944,8.1e-07,92238.0,92237.0,0.63990372]
[1740987112138,8.1e-07,92238.0,92237.0,0.63177263]
[1740987112538,8.1e-07,92238.0,92237.0,0.53929263]
[1740987112709,0.0001703,92249.0,92248.0,0.462605]
[1740987113059,0.0001703,92249.0,92248.0,0.56958585]
[1740987113206,0.0001703,92249.0,92248.0,0.47714585]
[1740987114141,7e-05,92268.0,92267.0,0.162571]
[1740987114298,0.00019036,92268.0,92267.0,0.162571]
[1740987114495,0.00019036,92268.0,92267.0,0.47711185]
[1740987114742,0.00019036,92268.0,92267.0,0.56955185]
[1740987114959,0.00019036,92268.0,92267.0,0.47711185]
[1740987115504,0.00019036,92268.0,92267.0,0.48816447]
[1740987116547,0.00019036,92268.0,92267.0,0.49516447]
[1740987117043,0.00019036,92268.0,92267.0,0.49416447]
[1740987117250,0.00019036,92268.0,92267.0,0.47711185]
[1740987117486,0.00019036,92268.0,92267.0,0.49011185]
[1740987117798,0.00019036,92268.0,92267.0,0.48411185]
[1740987117960,0.00019036,92268.0,92267.0,0.49533996]
[1740987118159,0.00019036,92268.0,92267.0,0.49433996]
[1740987118361,0.00019036,92268.0,92267.0,0.48833996]
[1740987118567,0.00019036,92268.0,92267.0,0.48033996]
[1740987119657,0.00019036,92268.0,92267.0,0.48733996]
[1740987119832,0.00019036,92268.0,92267.0,0.49333996]
[1740987120081,0.00019036,92268.0,92267.0,0.48633996]
[1740987120301,0.00019036,92268.0,92267.0,0.48033996]
[1740987120522,0.00019036,92268.0,92267.0,0.49333996]
[1740987120925,0.00019036,92268.0,92267.0,0.48633996]
[1740987121085,0.00019036,92268.0,92267.0,0.49333996]
[1740987121483,0.00019036,92268.0,92267.0,0.48733996]
[1740987121710,0.00019036,92268.0,92267.0,0.49333996]
[1740987121913,0.00019036,92268.0,92267.0,0.58569996]
[1740987122502,0.00019036,92268.0,92267.0,0.49333996]
[1740987122725,0.00019036,92268.0,92267.0,0.58565996]
[1740987122926,0.00019036,92268.0,92267.0,0.49333996]
[1740987123166,0.00019036,92268.0,92267.0,0.57865996]
[1740987123339,0.00019036,92268.0,92267.0,0.48033996]
[1740987123542,0.00019036,92268.0,92267.0,0.57965996]
[1740987123722,0.00019036,92268.0,92267.0,0.49333996]
[1740987123925,0.00019036,92268.0,92267.0,0.48033996]
[1740987124122,0.00019036,92268.0,92267.0,0.47461663]
[1740987124326,0.00019036,92268.0,92267.0,0.48861663]
[1740987124642,0.00019036,92268.0,92267.0,0.47461663]
[1740987124824,0.00019036,92268.0,92267.0,0.57293663]
[1740987125751,0.00019036,92268.0,92267.0,0.48095683]
[1740987126137,0.00036046,92268.0,92267.0,0.48795683]
[1740987126474,0.00036046,92268.0,92267.0,0.47495683]
[1740987126777,0.00036046,92268.0,92267.0,0.48895683]
[1740987127079,0.00036046,92268.0,92267.0,0.48195683]
[1740987127307,0.00036046,92268.0,92267.0,0.48095683]
[1740987127604,0.00036046,92268.0,92267.0,0.48195683]
[1740987127970,0.00036046,92268.0,92267.0,0.48795683]
[1740987128171,0.00036046,92268.0,92267.0,0.48195683]
[1740987129027,0.00036046,92268.0,92267.0,0.47495683]
[1740987129367,0.00036046,92268.0,92267.0,0.54452448]
[1740987129612,0.00036046,92268.0,92267.0,0.55152448]
[1740987129810,0.00036046,92268.0,92267.0,0.54452448]
[1740987130014,0.00036046,92268.0,92267.0,0.53752448]
[1740987130218,0.00036046,92268.0,92267.0,0.55152448]
[1740987130596,0.00036046,92268.0,92267.0,0.53752448]
[1740987130820,0.0766,92294.0,92267.0,0.53752448]
[1740987130821,0.046,92298.0,92289.0,0.462532]
[1740987131018,0.00030583,92299.0,92289.0,0.56931285]
[1740987132445,0.00030583,92299.0,92289.0,0.59139121]
[1740987133298,0.00030583,92299.0,92289.0,0.63169204]
[1740987133921,2e-07,92290.0,92289.0,0.63169204]
[1740987134123,0.00027161,92299.0,92298.0,0.47705785]
[1740987134325,0.0001702,92312.0,92299.0,0.01454085]
[1740987134527,0.0001702,92312.0,92289.0,0.51690079]
[1740987134528,0.00057125,92312.0,92311.0,0.47703485]
[1740987135870,0.00057125,92312.0,92311.0,0.51733568]
[1740987136642,0.00057125,92312.0,92311.0,0.52810362]
[1740987136994,0.00057125,92312.0,92311.0,0.53510362]
[1740987137563,0.12297125,92312.0,92311.0,0.04730083]
[1740987138131,0.12297125,92312.0,92311.0,0.22433568]
[1740987138544,0.04687125,92312.0,92311.0,0.18403485]
[1740987139155,0.04687125,92312.0,92311.0,0.162494]
[1740987139799,0.04687125,92312.0,92311.0,0.173494]
[1740987140005,0.53346325,92312.0,92311.0,0.004]
[1740987140318,0.45357125,92312.0,92311.0,0.004]
[1740987140616,0.0456,92290.0,92284.0,0.09216]
[1740987140796,0.0456,92290.0,92289.0,0.01454085]
[1740987140996,0.0456,92302.0,92301.0,0.17705185]
[1740987141196,0.0456,92302.0,92301.0,0.47705185]
[1740987141399,0.3241,92311.0,92310.0,0.47703585]
[1740987141933,0.1268,92317.0,92310.0,0.47703585]
[1740987141934,0.075,92329.0,92313.0,0.3]
[1740987142072,0.075,92329.0,92328.0,0.01454085]
[1740987142285,0.075,92329.0,92311.0,0.312]
[1740987142286,0.162464,92328.0,92311.0,0.012]
[1740987142484,0.07512024,92329.0,92311.0,0.012]
[1740987142848,0.07512024,92329.0,92311.0,0.005]
[1740987142993,0.07512024,92329.0,92310.0,0.162495]
[1740987143176,0.162482,92318.0,92312.0,0.01454085]
[1740987143423,0.29173724,92329.0,92312.0,0.01454085]
[1740987143614,0.07512024,92329.0,92311.0,0.01454085]
[1740987143817,0.162477,92321.0,92313.0,0.162489]
[1740987144020,0.162477,92321.0,92314.0,0.01454085]
[1740987144217,0.001,92320.0,92312.0,0.01454085]
[1740987144420,0.162475,92322.0,92315.0,0.162486]
[1740987144621,0.001,92321.0,92316.0,0.162484]
[1740987144826,0.07512024,92329.0,92303.0,0.3]
[1740987144827,0.07512024,92329.0,92325.0,0.162468]
[1740987145026,0.07512024,92329.0,92305.0,0.01454085]
[1740987145227,0.001,92328.0,92324.0,0.162469]
[1740987145399,0.001,92328.0,92317.0,0.216644]
[1740987145764,0.217621,92328.0,92318.0,0.01454085]
[1740987145936,0.162481,92319.0,92312.0,0.162491]
[1740987146151,0.216644,92317.0,92311.0,0.001]
[1740987146350,0.001,92316.0,92298.0,0.01117331]
[1740987146554,0.001,92316.0,92300.0,0.01454085]
[1740987146849,0.31967125,92315.0,92302.0,0.01454085]
[1740987147150,0.31967125,92315.0,92295.0,0.01109109]
[1740987147151,0.0774,92313.0,92295.0,0.01109109]
[1740987147449,0.001,92312.0,92311.0,0.18203485]
[1740987147606,0.0784,92313.0,92303.0,0.04029929]
[1740987147812,0.0784,92313.0,92309.0,0.01454085]
[1740987148008,0.0784,92313.0,92304.0,0.23121585]
[1740987148207,0.0784,92313.0,92312.0,0.17703285]
[1740987148428,0.31967125,92315.0,92314.0,0.17702885]
[1740987149385,0.31967125,92315.0,92314.0,0.01454085]
[1740987150668,0.31967125,92315.0,92314.0,0.17702885]
[1740987151381,0.31967125,92315.0,92314.0,0.48402885]
[1740987151761,0.31967125,92315.0,92314.0,0.52435263]
[1740987152179,0.0001702,92321.0,92320.0,0.462478]
[1740987152506,0.0001702,92321.0,92320.0,0.47701885]
[1740987154473,4.4e-07,92329.0,92328.0,0.462464]
[1740987154664,0.0004,92339.0,92330.0,0.46246]
[1740987154835,0.0004,92339.0,92330.0,0.47700085]
[1740987155466,2e-07,92331.0,92330.0,0.47700085]
[1740987156440,1e-06,92339.0,92338.0,0.462446]
[1740987156642,1e-06,92339.0,92338.0,0.47698685]
[1740987157445,0.31967125,92360.0,92359.0,0.462409]
[1740987157647,0.31967125,92375.0,92360.0,0.17694785]
[1740987157975,0.00029042,92361.0,92360.0,0.17694785]
[1740987159377,0.00029042,92361.0,92360.0,0.18769571]
[1740987159591,0.00029042,92361.0,92360.0,0.17694785]
[1740987160178,0.00029042,92361.0,92360.0,0.18394785]
[1740987160675,0.00029042,92361.0,92360.0,0.48546362]
[1740987160926,0.00029042,92361.0,92360.0,0.48394785]
[1740987161124,0.00029042,92361.0,92360.0,0.49094785]
[1740987164087,0.00029042,92361.0,92360.0,0.56704785]
[1740987164287,0.0004,92379.0,92378.0,0.462376]
[1740987164607,0.0004,92379.0,92378.0,0.47691685]
[1740987166336,0.0004,92379.0,92378.0,0.50542736]
[1740987166932,0.0004,92379.0,92378.0,0.47691685]
[1740987167131,0.0004,92379.0,92378.0,0.51242736]
[1740987167358,0.0004,92379.0,92378.0,0.57575685]
[1740987167601,0.0004,92379.0,92378.0,0.56875685]
[1740987168284,0.0004,92379.0,92378.0,0.59015101]
[1740987168672,0.0001701,92405.0,92379.0,0.31454085]
[1740987168892,0.00019824,92392.0,92391.0,0.55689385]
[1740987169091,0.00019824,92392.0,92391.0,0.47689385]
[1740987169287,0.00019824,92392.0,92391.0,0.56873385]
[1740987169815,0.00019824,92392.0,92391.0,0.47689385]
[1740987170056,0.00019824,92392.0,92391.0,0.56869385]
[1740987170375,0.00019824,92392.0,92391.0,0.47689385]
[1740987170531,0.00019824,92392.0,92385.0,0.0918]
[1740987170871,0.00019824,92392.0,92387.0,0.51648]
[1740987170992,0.00019824,92392.0,92391.0,0.02154085]
[1740987171196,0.00019824,92392.0,92391.0,0.19089385]
[1740987171447,0.00019824,92392.0,92391.0,0.02854085]
[1740987171651,0.00019824,92392.0,92391.0,0.49089385]
[1740987171856,0.00019824,92392.0,92391.0,0.47689385]
[1740987172597,0.00019824,92392.0,92391.0,0.31454085]
[1740987172784,0.00019824,92392.0,92391.0,0.47689385]
[1740987173533,0.00019824,92392.0,92391.0,0.31454085]
[1740987173722,0.69869149,92392.0,92391.0,0.007]
[1740987173928,0.69869149,92392.0,92357.0,0.01104098]
[1740987173929,0.31986949,92392.0,92370.0,0.1811408]
[1740987174117,0.40026949,92392.0,92391.0,0.02154085]
[1740987174280,0.56262049,92392.0,92391.0,0.02154085]
[1740987174888,0.40026949,92392.0,92391.0,0.02154085]
[1740987175063,0.40026949,92392.0,92391.0,0.18389385]
[1740987175264,0.40026949,92392.0,92391.0,0.17689385]
[1740987175704,0.40026949,92392.0,92391.0,0.18089385]
[1740987176495,0.40026949,92392.0,92391.0,0.01854085]
[1740987176692,0.40026949,92392.0,92391.0,0.006]
[1740987176896,0.56262049,92392.0,92391.0,0.00506971]
[1740987177194,0.56262049,92392.0,92391.0,0.00306971]
[1740987177396,0.40026949,92392.0,92387.0,0.162358]
[1740987177583,0.40026949,92392.0,92390.0,0.01454085]
[1740987177779,0.001,92391.0,92378.0,0.3]
[1740987177985,0.162371,92381.0,92378.0,0.3]
[1740987178201,0.001,92380.0,92377.0,0.09176]
[1740987178536,0.40026949,92392.0,92378.0,0.31454085]
[1740987178741,0.40026949,92392.0,92383.0,0.01454085]
[1740987178742,0.31986949,92392.0,92383.0,0.01454085]
[1740987178944,0.31986949,92392.0,92391.0,0.17689385]
[1740987180072,0.31986949,92392.0,92391.0,0.01454085]
[1740987181479,0.48222049,92392.0,92391.0,0.01454085]
[1740987181804,0.48222049,92392.0,92391.0,0.02054085]
[1740987182008,0.31986949,92392.0,92391.0,0.18289385]
[1740987182402,0.00019824,92392.0,92391.0,0.47689385]
[1740987183017,0.00019824,92392.0,92391.0,0.47989385]
[1740987183771,0.00019824,92392.0,92391.0,0.48389385]
[1740987184174,0.00019824,92392.0,92391.0,0.47989385]
[1740987184417,0.00019824,92392.0,92391.0,0.561033]
[1740987184573,0.00019824,92392.0,92391.0,0.57557385]
[1740987184777,0.00019824,92392.0,92391.0,0.56857385]
[1740987184976,0.00019824,92392.0,92391.0,0.57591405]
[1740987185193,0.00036834,92392.0,92391.0,0.58291405]
[1740987185395,0.00036834,92392.0,92391.0,0.56891405]
[1740987185756,0.00036834,92392.0,92391.0,0.4060202]
[1740987186195,0.16271934,92392.0,92391.0,0.1060202]
[1740987186740,0.00036834,92392.0,92391.0,0.4766932]
[1740987186897,0.00036834,92392.0,92391.0,0.49123405]
[1740987188722,0.0001701,92405.0,92404.0,0.46233]
[1740987188908,0.0001701,92405.0,92404.0,0.56851085]
[1740987189248,0.00057068,92405.0,92404.0,0.31454085]
[1740987189623,0.00057068,92405.0,92404.0,0.47687085]
[1740987190207,0.00057068,92405.0,92404.0,0.31454085]
[1740987190905,0.32024193,92405.0,92404.0,0.31454085]
[1740987191106,0.32024193,92405.0,92404.0,0.32154085]
[1740987191330,0.32024193,92405.0,92404.0,0.32854085]
[1740987191727,0.48256993,92405.0,92404.0,0.02854085]
[1740987192049,0.32024193,92405.0,92404.0,0.01454085]
[1740987192407,0.48256993,92405.0,92404.0,0.01454085]
[1740987192604,0.162351,92392.0,92391.0,0.0003402]
[1740987192805,0.163351,92392.0,92391.0,0.0003402]
[1740987194813,0.163351,92392.0,92391.0,0.02188105]
[1740987195011,0.001,92392.0,92391.0,0.02188105]
[1740987195214,0.001,92399.0,92394.0,0.01454085]
[1740987195451,0.001,92400.0,92396.0,0.162343]
[1740987195664,0.0769,92401.0,92397.0,0.01454085]
[1740987196086,0.0769,92401.0,92396.0,0.01454085]
[1740987196446,0.239236,92401.0,92396.0,0.01454085]
[1740987196883,0.0769,92401.0,92396.0,0.162343]
[1740987197088,0.0769,92401.0,92400.0,0.01454085]
[1740987197385,0.55790625,92401.0,92400.0,0.01454085]
[1740987198358,0.162342,92397.0,92396.0,0.007]
[1740987198564,0.163342,92397.0,92396.0,0.007]
[1740987198823,0.001,92397.0,92391.0,0.01488105]
[1740987199027,0.001,92397.0,92394.0,0.01454085]
[1740987199388,0.001,92397.0,92392.0,0.01454085]
[1740987199590,0.001,92399.0,92391.0,0.3003402]
[1740987199790,0.162351,92392.0,92391.0,0.31488105]
[1740987199978,0.162351,92392.0,92391.0,0.0003402]
[1740987199979,0.48202225,92392.0,92391.0,0.0003402]
[1740987200180,0.31967125,92392.0,92391.0,0.0003402]
[1740987200396,0.31967125,92392.0,92391.0,0.1626932]
[1740987200619,0.31967125,92392.0,92391.0,0.17723405]
[1740987202216,0.31967125,92392.0,92391.0,0.18323405]
[1740987202417,0.31967125,92392.0,92391.0,0.49023405]
[1740987203119,0.48202225,92392.0,92391.0,0.32788105]
[1740987203501,0.31967125,92392.0,92391.0,0.49023405]